[Event "NOR-ch Various 2019"]
[Site "Larvik"]
[Date "2019.07.10"]
[Round "6.20"]
[White "Nordquelle, Daniel"]
[Black "Nielsen, Andre"]
[Result "1-0"]
[ECO "C54"]
[WhiteElo "2181"]
[BlackElo "2229"]
[Annotator "NA"]
[PlyCount "93"]
[EventDate "2019.07.06"]
[EventType "swiss"]
[EventCountry "NOR"]
[SourceTitle "playchess.com"]
[Source "ChessBase"]
[SourceQuality "1"]
[TimeControl "40/5400+30:1800+30"]

1. e4 {[%emt 0:00:00]} e5 {[%emt 0:00:00]} 2. Nf3 {[%emt 0:00:00]} Nc6 {[%emt 0:00:00]} 3. Bc4 {[%emt 0:00:00]} Nf6 {[%emt 0:00:42]} 4. d3 {[%emt 0:00:00]} Bc5 {[%emt 0:00:23]} 5. O-O {[%emt 0:00:10]} a6 {[%emt 0:01:46]} 6. c3 {[%emt 0:00:26]} d6 {[%emt 0:01:25]} 7. Nbd2 {[%emt 0:00:17]} Ba7 {[%emt 0:08:05]} 8. a4 {[%emt 0:01:40]} O-O {[%emt 0:01:06]} 9. h3 {[%emt 0:02:18]} Ne7 {[%emt 0:07:09]} 10. Ba2 {[%emt 0:04:25]} Ng6 {[%emt 0:00:56]} 11. d4 {[%emt 0:01:47]} Re8 {[%emt 0:08:03]} 12. d5 {[%emt 0:01:21]} Nh5 {[%emt 0:02:28]} 13. Nc4 {[%emt 0:02:29]} Nhf4 {[%emt 0:01:44]} 14. Be3 {[%emt 0:16:27]} Nh4 {[%emt 0:16:35]} 15. Nxh4 {[%emt 0:12:44]} Qxh4 {[%emt 0:00:19]} 16. Qf3 {[%emt 0:00:33]} g5 {[%emt 0:10:31]} 17. Kh2 {[%emt 0:21:20]} g4 {[%emt 0:07:40]} 18. Qg3 {[%emt 0:00:04]} Qf6 {[%emt 0:00:49]} 19. f3 {[%emt 0:08:19]} Nh5 {[%emt 0:01:44]} 20. fxg4 {[%emt 0:00:27]} Nxg3 {[%emt 0:04:27]} 21. Rxf6 {[%emt 0:01:42]} Nxe4 {[%emt 0:00:50]} 22. Rff1 {[%emt 0:00:34]} b5 {[%emt 0:02:39]} 23. axb5 {[%emt 0:10:20]} Bxe3 {[%emt 0:00:55]} 24. Nxe3 {[%emt 0:00:07]} axb5 {[%emt 0:00:07]} 25. Bb3 {[%emt 0:00:13]} Rxa1 {[%emt 0:04:37]} 26. Rxa1 {[%emt 0:00:04]} Bb7 {[%emt 0:03:50]} 27. Ra5 {[%emt 0:01:54]} Nc5 {[%emt 0:00:00]} 28. Rxb5 {[%emt 0:01:19]} Ba6 {[%emt 0:00:00]} 29. Rb4 {[%emt 0:00:49]} Nd3 {[%emt 0:00:40]} 30. Ra4 {[%emt 0:00:36]} Nc5 {[%emt 0:01:00]} 31. Ra2 {[%emt 0:00:21]} Bd3 {[%emt 0:01:52]} 32. Bd1 {[%emt 0:00:38]} Rb8 {[%emt 0:01:16]} 33. b4 {[%emt 0:01:08]} Ne4 {[%emt 0:00:32]} 34. Ra3 {[%emt 0:00:06]} Nd2 {[%emt 0:04:25]} 35. Ra7 {[%emt 0:04:42]} Nc4 {[%emt 0:00:53]} 36. Nf5 {[%emt 0:01:14]} Bxf5 {[%emt 0:01:43]} 37. gxf5 {[%emt 0:00:03]} Ne3 {[%emt 0:01:15]} 38. Bf3 {[%emt 0:00:24]} Re8 {[%emt 0:01:27]} 39. Rxc7 {[%emt 0:02:34]} e4 {[%emt 0:00:18]} 40. Bh5 {[%emt 0:00:06]} Rf8 {[%emt 0:01:59]} 41. c4 {[%emt 0:34:11]} Nxf5 {[%emt 0:33:00]} 42. b5 {[%emt 0:01:01]} e3 {[%emt 0:01:07]} 43. b6 {[%emt 0:00:19]} Ng7 {[%emt 0:00:00]} 44. Be2 {[%emt 0:00:00]} Ne8 {[%emt 0:00:00]} 45. Rc8 {[%emt 0:00:00]} Nf6 {[%emt 0:00:00]} 46. b7 {[%emt 0:00:00]} Nd7 {[%emt 0:00:00]} 47. Kg3 {[%emt 0:00:00]} 1-0

[Event "NOR-ch Various 2019"]
[Site "Larvik"]
[Date "2019.07.10"]
[Round "6.21"]
[White "Bruaset, Eivind"]
[Black "Kjaras, Alf Marius"]
[Result "1-0"]
[ECO "B98"]
[WhiteElo "2074"]
[BlackElo "1860"]
[Annotator "NA"]
[PlyCount "29"]
[EventDate "2019.07.06"]
[EventType "swiss"]
[EventCountry "NOR"]
[SourceTitle "playchess.com"]
[Source "ChessBase"]
[SourceQuality "1"]
[TimeControl "40/5400+30:1800+30"]

1. e4 {[%emt 0:00:00]} c5 {[%emt 0:00:00]} 2. Nf3 {[%emt 0:00:00]} d6 {[%emt 0:00:00]} 3. d4 {[%emt 0:00:00]} cxd4 {[%emt 0:00:00]} 4. Nxd4 {[%emt 0:00:00]} Nf6 {[%emt 0:00:00]} 5. Nc3 {[%emt 0:00:00]} a6 {[%emt 0:00:00]} 6. Bg5 {[%emt 0:00:06]} e6 {[%emt 0:00:22]} 7. f4 {[%emt 0:00:09]} Be7 {[%emt 0:01:11]} 8. Qf3 {[%emt 0:00:31]} Nc6 {[%emt 0:12:52]} 9. O-O-O {[%emt 0:01:00]} Nxd4 {[%emt 0:04:14]} 10. Rxd4 {[%emt 0:00:21]} Qb6 {[%emt 0:01:50]} 11. Rd2 {[%emt 0:00:08]} h6 {[%emt 0:02:16]} 12. Bh4 {[%emt 0:00:12]} Nxe4 {[%emt 0:16:01]} 13. Nxe4 {[%emt 0:01:19]} Bxh4 {[%emt 0:00:25]} 14. Nxd6+ {[%emt 0:00:04]} Kf8 {[%emt 0:02:16]} 15. Qh5 {[%emt 0:00:06]} 1-0

[Event "NOR-ch Various 2019"]
[Site "Larvik"]
[Date "2019.07.10"]
[Round "6.22"]
[White "Evenshaug, Amadeus Hestvik"]
[Black "Tunsjo, Axel"]
[Result "0-1"]
[ECO "B47"]
[WhiteElo "1769"]
[BlackElo "2039"]
[Annotator "NA"]
[PlyCount "92"]
[EventDate "2019.07.06"]
[EventType "swiss"]
[EventCountry "NOR"]
[SourceTitle "playchess.com"]
[Source "ChessBase"]
[SourceQuality "1"]
[TimeControl "40/5400+30:1800+30"]

1. e4 {[%emt 0:00:00]} c5 {[%emt 0:00:00]} 2. Nf3 {[%emt 0:00:00]} e6 {[%emt 0:00:01]} 3. Nc3 {[%emt 0:00:21]} Nc6 {[%emt 0:00:15]} 4. d4 {[%emt 0:00:16]} cxd4 {[%emt 0:00:09]} 5. Nxd4 {[%emt 0:00:06]} Qc7 {[%emt 0:00:11]} 6. g3 {[%emt 0:00:36]} a6 {[%emt 0:01:44]} 7. Bg2 {[%emt 0:00:32]} Nf6 {[%emt 0:05:35]} 8. O-O {[%emt 0:00:40]} Be7 {[%emt 0:02:24]} 9. Nb3 {[%emt 0:00:59]} d6 {[%emt 0:06:11]} 10. Re1 {[%emt 0:03:19]} b5 {[%emt 0:03:55]} 11. a3 {[%emt 0:07:57]} Bb7 {[%emt 0:00:25]} 12. Be3 {[%emt 0:02:07]} Ne5 {[%emt 0:03:41]} 13. Nd2 {[%emt 0:06:04]} O-O {[%emt 0:06:33]} 14. f4 {[%emt 0:07:02]} Neg4 {[%emt 0:02:18]} 15. Kh1 {[%emt 0:05:56]} Nxe3 {[%emt 0:01:45]} 16. Rxe3 {[%emt 0:00:08]} Rfd8 {[%emt 0:01:03]} 17. Nb3 {[%emt 0:06:44]} Rac8 {[%emt 0:16:18]} 18. Qe2 {[%emt 0:08:20]} d5 {[%emt 0:02:03]} 19. exd5 {[%emt 0:05:22]} Nxd5 {[%emt 0:00:27]} 20. Rd3 {[%emt 0:06:03]} Qc4 {[%emt 0:05:36]} 21. Bxd5 {[%emt 0:15:59]} Bxd5+ {[%emt 0:00:53]} 22. Kg1 {[%emt 0:00:08]} Bf6 {[%emt 0:03:08]} 23. Nd2 {[%emt 0:07:08]} Qc5+ {[%emt 0:00:28]} 24. Qf2 {[%emt 0:03:09]} Bxc3 {[%emt 0:02:37]} 25. Qxc5 {[%emt 0:01:34]} Rxc5 {[%emt 0:00:41]} 26. bxc3 {[%emt 0:00:21]} Rdc8 {[%emt 0:00:39]} 27. Nb1 {[%emt 0:05:43]} a5 {[%emt 0:07:20]} 28. h4 {[%emt 0:04:04]} h5 {[%emt 0:00:00]} 29. Kf2 {[%emt 0:01:08]} a4 {[%emt 0:00:00]} 30. Ke3 {[%emt 0:00:13]} Kf8 {[%emt 0:00:00]} 31. Kd2 {[%emt 0:00:34]} Bc4 {[%emt 0:03:41]} 32. Rd4 {[%emt 0:00:53]} e5 {[%emt 0:00:21]} 33. Re4 {[%emt 0:01:07]} Rd8+ {[%emt 0:00:37]} 34. Ke1 {[%emt 0:00:32]} Rcd5 {[%emt 0:00:46]} 35. Rxe5 {[%emt 0:01:03]} Rd1+ {[%emt 0:00:07]} 36. Kf2 {[%emt 0:00:05]} Rf1+ {[%emt 0:00:42]} 37. Kg2 {[%emt 0:00:28]} Rdd1 {[%emt 0:00:12]} 38. Rxh5 {[%emt 0:00:55]} Rxb1 {[%emt 0:00:08]} 39. Rxb1 {[%emt 0:00:13]} Rxb1 {[%emt 0:00:04]} 40. Kf2 {[%emt 0:00:18]} Ra1 {[%emt 0:00:09]} 41. Ke3 {[%emt 0:30:06]} Rxa3 {[%emt 0:30:11]} 42. Kd4 {[%emt 0:00:06]} Ra1 {[%emt 0:00:07]} 43. Rh8+ {[%emt 0:00:13]} Ke7 {[%emt 0:00:04]} 44. f5 {[%emt 0:00:12]} a3 {[%emt 0:00:21]} 45. Rg8 {[%emt 0:00:10]} a2 {[%emt 0:00:08]} 46. Kc5 {[%emt 0:00:43]} Rd1 {[%emt 0:00:12]} 0-1

[Event "NOR-ch Various 2019"]
[Site "Larvik"]
[Date "2019.07.10"]
[Round "6.23"]
[White "Austad, Eirik"]
[Black "Ihlen, Sivert"]
[Result "1/2-1/2"]
[ECO "A28"]
[WhiteElo "1741"]
[BlackElo "1580"]
[Annotator "NA"]
[PlyCount "62"]
[EventDate "2019.07.06"]
[EventType "swiss"]
[EventCountry "NOR"]
[SourceTitle "playchess.com"]
[Source "ChessBase"]
[SourceQuality "1"]
[TimeControl "40/5400+30:1800+30"]

1. c4 {[%emt 0:00:00]} e5 {[%emt 0:00:00]} 2. Nc3 {[%emt 0:00:00]} Nf6 {[%emt 0:00:00]} 3. a3 {[%emt 0:00:21]} d5 {[%emt 0:00:49]} 4. cxd5 {[%emt 0:00:39]} Nxd5 {[%emt 0:00:07]} 5. Qc2 {[%emt 0:01:03]} Nc6 {[%emt 0:03:30]} 6. Nf3 {[%emt 0:06:15]} Be7 {[%emt 0:06:41]} 7. e3 {[%emt 0:00:43]} O-O {[%emt 0:01:49]} 8. Be2 {[%emt 0:00:18]} a5 {[%emt 0:03:48]} 9. d3 {[%emt 0:02:58]} Be6 {[%emt 0:10:17]} 10. O-O {[%emt 0:09:25]} Nb6 {[%emt 0:01:36]} 11. b3 {[%emt 0:04:50]} Bf6 {[%emt 0:11:18]} 12. Ne4 {[%emt 0:07:45]} Bf5 {[%emt 0:05:24]} 13. Nfd2 {[%emt 0:08:44]} Be7 {[%emt 0:01:45]} 14. Bb2 {[%emt 0:03:52]} f6 {[%emt 0:03:53]} 15. Rfd1 {[%emt 0:14:48]} Qe8 {[%emt 0:03:26]} 16. Ng3 {[%emt 0:04:44]} Bg6 {[%emt 0:01:03]} 17. Nf3 {[%emt 0:02:39]} Rd8 {[%emt 0:05:30]} 18. e4 {[%emt 0:07:47]} Rd6 {[%emt 0:06:53]} 19. Nh4 {[%emt 0:02:54]} Qd8 {[%emt 0:01:58]} 20. Nhf5 {[%emt 0:00:15]} Rd7 {[%emt 0:00:33]} 21. Bg4 {[%emt 0:01:53]} Bf7 {[%emt 0:04:37]} 22. Ne3 {[%emt 0:01:06]} Rd6 {[%emt 0:02:27]} 23. Ngf5 {[%emt 0:04:01]} Rd7 {[%emt 0:00:14]} 24. Nc4 {[%emt 0:01:09]} Nxc4 {[%emt 0:00:43]} 25. bxc4 {[%emt 0:00:10]} Bc5 {[%emt 0:02:32]} 26. Ne3 {[%emt 0:01:56]} Rd6 {[%emt 0:00:53]} 27. Nf5 {[%emt 0:01:14]} Rd7 {[%emt 0:00:08]} 28. Qb3 {[%emt 0:02:12]} b6 {[%emt 0:07:55]} 29. Rd2 {[%emt 0:02:34]} Kh8 {[%emt 0:01:21]} 30. Ne3 {[%emt 0:00:47]} Rd6 {[%emt 0:00:21]} 31. Nf5 {[%emt 0:00:20]} Rd7 {[%emt 0:01:07]} 1/2-1/2

[Event "NOR-ch Various 2019"]
[Site "Larvik"]
[Date "2019.07.10"]
[Round "6.24"]
[White "Brattgjerd, Isak Vinh"]
[Black "Olsen, William Alexander"]
[Result "0-1"]
[ECO "A47"]
[WhiteElo "1571"]
[BlackElo "1764"]
[Annotator "NA"]
[PlyCount "106"]
[EventDate "2019.07.06"]
[EventType "swiss"]
[EventCountry "NOR"]
[SourceTitle "playchess.com"]
[Source "ChessBase"]
[SourceQuality "1"]
[TimeControl "40/5400+30:1800+30"]

1. d4 {[%emt 0:00:00]} Nf6 {[%emt 0:00:00]} 2. Bf4 {[%emt 0:00:49]} b6 {[%emt 0:00:00]} 3. e3 {[%emt 0:00:21]} Bb7 {[%emt 0:00:00]} 4. Nf3 {[%emt 0:00:08]} e6 {[%emt 0:00:07]} 5. Nbd2 {[%emt 0:00:24]} d6 {[%emt 0:00:20]} 6. h3 {[%emt 0:01:10]} Be7 {[%emt 0:00:14]} 7. c3 {[%emt 0:01:13]} Nbd7 {[%emt 0:01:14]} 8. Bh2 {[%emt 0:02:53]} c5 {[%emt 0:02:29]} 9. Bb5 {[%emt 0:07:31]} O-O {[%emt 0:01:12]} 10. O-O {[%emt 0:01:41]} a6 {[%emt 0:02:03]} 11. Ba4 {[%emt 0:01:13]} b5 {[%emt 0:02:38]} 12. Bc2 {[%emt 0:00:21]} Qb6 {[%emt 0:00:57]} 13. a3 {[%emt 0:04:48]} Rad8 {[%emt 0:02:28]} 14. Qe2 {[%emt 0:06:00]} Rfe8 {[%emt 0:01:33]} 15. Rac1 {[%emt 0:05:29]} Bf8 {[%emt 0:03:48]} 16. Rfd1 {[%emt 0:03:33]} e5 {[%emt 0:05:08]} 17. dxe5 {[%emt 0:04:10]} dxe5 {[%emt 0:05:33]} 18. Nf1 {[%emt 0:04:09]} Bd6 {[%emt 0:02:33]} 19. Rd2 {[%emt 0:10:39]} c4 {[%emt 0:06:54]} 20. Rcd1 {[%emt 0:03:54]} Nc5 {[%emt 0:00:47]} 21. Ne1 {[%emt 0:05:19]} Nfe4 {[%emt 0:04:53]} 22. Bxe4 {[%emt 0:01:27]} Bxe4 {[%emt 0:01:39]} 23. Ng3 {[%emt 0:06:48]} Bg6 {[%emt 0:02:42]} 24. e4 {[%emt 0:04:53]} f6 {[%emt 0:02:41]} 25. Kh1 {[%emt 0:02:18]} Nb3 {[%emt 0:00:36]} 26. Rc2 {[%emt 0:01:23]} Bc5 {[%emt 0:01:16]} 27. f3 {[%emt 0:00:50]} Rxd1 {[%emt 0:00:37]} 28. Qxd1 {[%emt 0:00:05]} Rd8 {[%emt 0:00:10]} 29. Qe2 {[%emt 0:00:18]} Qd6 {[%emt 0:01:26]} 30. Bg1 {[%emt 0:03:27]} Qd1 {[%emt 0:01:06]} 31. Bxc5 {[%emt 0:03:02]} Nxc5 {[%emt 0:00:25]} 32. Kh2 {[%emt 0:01:33]} h5 {[%emt 0:01:40]} 33. Nf1 {[%emt 0:01:43]} f5 {[%emt 0:02:28]} 34. Qe3 {[%emt 0:07:27]} fxe4 {[%emt 0:02:58]} 35. Qxc5 {[%emt 0:02:16]} Qxe1 {[%emt 0:00:28]} 36. Qb6 {[%emt 0:00:33]} Qd1 {[%emt 0:03:45]} 37. Rd2 {[%emt 0:03:12]} Rxd2 {[%emt 0:00:12]} 38. Nxd2 {[%emt 0:00:05]} Qxd2 {[%emt 0:00:20]} 39. Qxg6 {[%emt 0:00:07]} Qf4+ {[%emt 0:00:49]} 40. Qg3 {[%emt 0:02:14]} exf3 {[%emt 0:00:49]} 41. gxf3 {[%emt 0:30:32]} Qd2+ {[%emt 0:31:58]} 42. Kh1 {[%emt 0:00:00]} Qc1+ {[%emt 0:00:00]} 43. Kh2 {[%emt 0:00:00]} Qxb2+ {[%emt 0:00:00]} 44. Kg1 {[%emt 0:00:00]} Qc1+ {[%emt 0:00:00]} 45. Kg2 {[%emt 0:00:00]} Qc2+ {[%emt 0:00:00]} 46. Kg1 {[%emt 0:00:00]} Qxc3 {[%emt 0:00:00]} 47. Qg6 {[%emt 0:00:00]} Qxf3 {[%emt 0:00:00]} 48. Qe8+ {[%emt 0:00:00]} Kh7 {[%emt 0:00:00]} 49. Qxe5 {[%emt 0:00:00]} c3 {[%emt 0:00:00]} 50. Qc5 {[%emt 0:00:00]} Qxh3 {[%emt 0:00:00]} 51. Qe5 {[%emt 0:00:00]} Qg4+ {[%emt 0:00:00]} 52. Kh2 {[%emt 0:00:00]} c2 {[%emt 0:00:00]} 53. Qe1 {[%emt 0:00:00]} Qf4+ {[%emt 0:00:00]} 0-1

[Event "NOR-ch Various 2019"]
[Site "Larvik"]
[Date "2019.07.10"]
[Round "6.25"]
[White "Stromhaug, Kristoffer Wang"]
[Black "Helliesen, Lykke-Merlot"]
[Result "1-0"]
[ECO "C46"]
[WhiteElo "1566"]
[BlackElo "1505"]
[Annotator "NA"]
[PlyCount "67"]
[EventDate "2019.07.06"]
[EventType "swiss"]
[EventCountry "NOR"]
[SourceTitle "playchess.com"]
[Source "ChessBase"]
[SourceQuality "1"]
[TimeControl "40/5400+30:1800+30"]

1. e4 {[%emt 0:00:05]} e5 {[%emt 0:00:00]} 2. Nf3 {[%emt 0:00:09]} Nc6 {[%emt 0:00:00]} 3. Nc3 {[%emt 0:00:13]} Bc5 {[%emt 0:00:39]} 4. a3 {[%emt 0:00:57]} d6 {[%emt 0:01:26]} 5. b4 {[%emt 0:01:38]} Bb6 {[%emt 0:01:57]} 6. Bc4 {[%emt 0:03:29]} Bg4 {[%emt 0:06:44]} 7. h3 {[%emt 0:03:57]} Bh5 {[%emt 0:02:41]} 8. Nd5 {[%emt 0:08:01]} Nf6 {[%emt 0:05:42]} 9. d3 {[%emt 0:03:03]} Nd4 {[%emt 0:17:55]} 10. Bg5 {[%emt 0:05:26]} h6 {[%emt 0:12:14]} 11. Bxf6 {[%emt 0:02:10]} Nxf3+ {[%emt 0:01:01]} 12. gxf3 {[%emt 0:00:08]} gxf6 {[%emt 0:00:27]} 13. Rg1 {[%emt 0:02:05]} c6 {[%emt 0:02:36]} 14. Ne3 {[%emt 0:01:37]} Bd4 {[%emt 0:03:57]} 15. Rb1 {[%emt 0:01:23]} Bg6 {[%emt 0:08:49]} 16. Qd2 {[%emt 0:06:23]} Bxe3 {[%emt 0:06:47]} 17. fxe3 {[%emt 0:00:40]} f5 {[%emt 0:01:40]} 18. Qf2 {[%emt 0:01:26]} Qe7 {[%emt 0:04:51]} 19. Kd2 {[%emt 0:03:33]} O-O-O {[%emt 0:01:25]} 20. exf5 {[%emt 0:01:18]} Bxf5 {[%emt 0:00:25]} 21. e4 {[%emt 0:00:48]} Bxh3 {[%emt 0:01:31]} 22. Qxa7 {[%emt 0:00:08]} Qc7 {[%emt 0:09:24]} 23. b5 {[%emt 0:06:05]} b6 {[%emt 0:07:50]} 24. Qa8+ {[%emt 0:01:23]} Kd7 {[%emt 0:00:45]} 25. bxc6+ {[%emt 0:00:12]} Ke7 {[%emt 0:01:04]} 26. Qb7 {[%emt 0:00:16]} Rc8 {[%emt 0:00:34]} 27. Qxc7+ {[%emt 0:00:09]} Rxc7 {[%emt 0:00:08]} 28. Rxb6 {[%emt 0:00:08]} Kd8 {[%emt 0:00:52]} 29. Ba6 {[%emt 0:02:19]} Bc8 {[%emt 0:00:30]} 30. Bxc8 {[%emt 0:00:18]} Kxc8 {[%emt 0:00:28]} 31. Rgb1 {[%emt 0:00:12]} Kd8 {[%emt 0:00:34]} 32. Rb8+ {[%emt 0:00:09]} Rc8 {[%emt 0:00:14]} 33. R1b7 {[%emt 0:00:15]} f6 {[%emt 0:00:48]} 34. Rd7+ {[%emt 0:00:08]} 1-0

[Event "NOR-ch Various 2019"]
[Site "Larvik"]
[Date "2019.07.10"]
[Round "6.26"]
[White "Schouten, Mathias Lind"]
[Black "Fuglestein, Sander"]
[Result "0-1"]
[ECO "B13"]
[WhiteElo "1961"]
[BlackElo "1997"]
[Annotator "NA"]
[PlyCount "72"]
[EventDate "2019.07.06"]
[EventType "swiss"]
[EventCountry "NOR"]
[SourceTitle "playchess.com"]
[Source "ChessBase"]
[SourceQuality "1"]
[TimeControl "40/5400+30:1800+30"]

1. e4 {[%emt 0:00:00]} c6 {[%emt 0:00:00]} 2. d4 {[%emt 0:00:00]} d5 {[%emt 0:00:00]} 3. exd5 {[%emt 0:00:00]} cxd5 {[%emt 0:00:00]} 4. Bf4 {[%emt 0:00:00]} Nc6 {[%emt 0:00:00]} 5. c3 {[%emt 0:00:00]} Bf5 {[%emt 0:00:08]} 6. Nf3 {[%emt 0:00:02]} e6 {[%emt 0:02:03]} 7. Qb3 {[%emt 0:00:06]} Qd7 {[%emt 0:01:00]} 8. Bb5 {[%emt 0:04:16]} Nge7 {[%emt 0:03:49]} 9. O-O {[%emt 0:16:18]} Ng6 {[%emt 0:04:36]} 10. Bg3 {[%emt 0:10:06]} Bd6 {[%emt 0:04:30]} 11. Re1 {[%emt 0:17:49]} O-O {[%emt 0:02:59]} 12. Nbd2 {[%emt 0:00:46]} a6 {[%emt 0:04:00]} 13. Bf1 {[%emt 0:01:20]} b5 {[%emt 0:07:32]} 14. a3 {[%emt 0:01:18]} Rfc8 {[%emt 0:05:03]} 15. Qd1 {[%emt 0:05:08]} Na5 {[%emt 0:02:52]} 16. b4 {[%emt 0:02:02]} Nc4 {[%emt 0:01:10]} 17. Bxc4 {[%emt 0:00:03]} bxc4 {[%emt 0:00:43]} 18. Ne5 {[%emt 0:00:18]} Bxe5 {[%emt 0:02:56]} 19. Bxe5 {[%emt 0:00:06]} Nxe5 {[%emt 0:00:19]} 20. Rxe5 {[%emt 0:00:11]} a5 {[%emt 0:01:10]} 21. g4 {[%emt 0:16:10]} Bg6 {[%emt 0:08:00]} 22. f4 {[%emt 0:02:19]} f6 {[%emt 0:02:35]} 23. Re3 {[%emt 0:00:05]} Qd6 {[%emt 0:01:16]} 24. Rf3 {[%emt 0:03:52]} e5 {[%emt 0:11:42]} 25. f5 {[%emt 0:01:44]} Bf7 {[%emt 0:03:14]} 26. Nf1 {[%emt 0:00:18]} axb4 {[%emt 0:05:08]} 27. cxb4 {[%emt 0:00:22]} Qb6 {[%emt 0:00:54]} 28. Kg2 {[%emt 0:00:58]} exd4 {[%emt 0:02:30]} 29. a4 {[%emt 0:01:32]} d3 {[%emt 0:04:41]} 30. Qd2 {[%emt 0:00:05]} Qd4 {[%emt 0:01:50]} 31. Rc1 {[%emt 0:01:16]} Re8 {[%emt 0:02:56]} 32. Ne3 {[%emt 0:03:50]} Rxa4 {[%emt 0:00:37]} 33. b5 {[%emt 0:00:49]} Raa8 {[%emt 0:02:09]} 34. Kf1 {[%emt 0:00:54]} Rab8 {[%emt 0:01:40]} 35. Nc2 {[%emt 0:01:11]} Qxg4 {[%emt 0:01:21]} 36. Ne3 {[%emt 0:00:52]} Qxf3+ {[%emt 0:00:06]} 0-1

[Event "NOR-ch Various 2019"]
[Site "Larvik"]
[Date "2019.07.10"]
[Round "6.27"]
[White "Grave, Jacob Templen"]
[Black "Tenold, Andreas"]
[Result "1-0"]
[ECO "E47"]
[WhiteElo "1800"]
[BlackElo "1813"]
[Annotator "NA"]
[PlyCount "103"]
[EventDate "2019.07.06"]
[EventType "swiss"]
[EventCountry "NOR"]
[SourceTitle "playchess.com"]
[Source "ChessBase"]
[SourceQuality "1"]
[TimeControl "40/5400+30:1800+30"]

1. d4 {[%emt 0:00:00]} Nf6 {[%emt 0:00:00]} 2. c4 {[%emt 0:00:00]} e6 {[%emt 0:00:00]} 3. Nc3 {[%emt 0:00:00]} Bb4 {[%emt 0:00:00]} 4. e3 {[%emt 0:00:00]} O-O {[%emt 0:00:00]} 5. Bd3 {[%emt 0:00:57]} d5 {[%emt 0:00:00]} 6. a3 {[%emt 0:01:52]} Bxc3+ {[%emt 0:05:42]} 7. bxc3 {[%emt 0:00:06]} b6 {[%emt 0:00:11]} 8. cxd5 {[%emt 0:00:48]} exd5 {[%emt 0:00:13]} 9. Ne2 {[%emt 0:01:24]} Bb7 {[%emt 0:00:22]} 10. O-O {[%emt 0:00:51]} Nbd7 {[%emt 0:02:11]} 11. a4 {[%emt 0:07:24]} c5 {[%emt 0:02:36]} 12. Ng3 {[%emt 0:01:10]} Ne4 {[%emt 0:02:43]} 13. Nxe4 {[%emt 0:06:24]} dxe4 {[%emt 0:00:45]} 14. Be2 {[%emt 0:01:19]} Qc7 {[%emt 0:03:11]} 15. f3 {[%emt 0:04:03]} Nf6 {[%emt 0:02:26]} 16. Ba3 {[%emt 0:01:41]} Rfe8 {[%emt 0:01:26]} 17. Qd2 {[%emt 0:10:00]} exf3 {[%emt 0:18:14]} 18. Bxf3 {[%emt 0:00:19]} Rac8 {[%emt 0:03:43]} 19. Rac1 {[%emt 0:08:49]} Ba6 {[%emt 0:13:13]} 20. Rfe1 {[%emt 0:13:26]} Ne4 {[%emt 0:03:27]} 21. Qc2 {[%emt 0:05:06]} Ng5 {[%emt 0:02:26]} 22. d5 {[%emt 0:04:21]} Nxf3+ {[%emt 0:00:55]} 23. gxf3 {[%emt 0:00:08]} Bc4 {[%emt 0:04:03]} 24. e4 {[%emt 0:02:08]} Qf4 {[%emt 0:00:33]} 25. Qf2 {[%emt 0:00:50]} f5 {[%emt 0:05:05]} 26. Qg3 {[%emt 0:05:31]} Qd2 {[%emt 0:01:38]} 27. Qg2 {[%emt 0:01:23]} Qxg2+ {[%emt 0:00:53]} 28. Kxg2 {[%emt 0:00:04]} Re5 {[%emt 0:00:40]} 29. Rcd1 {[%emt 0:07:52]} Bb3 {[%emt 0:03:03]} 30. Rd2 {[%emt 0:00:04]} Bxa4 {[%emt 0:00:36]} 31. c4 {[%emt 0:00:45]} Bb3 {[%emt 0:01:02]} 32. Bb2 {[%emt 0:01:06]} Re7 {[%emt 0:01:13]} 33. d6 {[%emt 0:01:53]} Re6 {[%emt 0:00:53]} 34. e5 {[%emt 0:05:32]} Bxc4 {[%emt 0:00:59]} 35. Bc3 {[%emt 0:03:22]} Bb5 {[%emt 0:05:47]} 36. Kg3 {[%emt 0:00:54]} g6 {[%emt 0:02:38]} 37. Rb2 {[%emt 0:03:05]} Bc6 {[%emt 0:04:47]} 38. Ra1 {[%emt 0:00:47]} b5 {[%emt 0:05:25]} 39. Rba2 {[%emt 0:01:20]} b4 {[%emt 0:02:44]} 40. Bb2 {[%emt 0:00:08]} c4 {[%emt 0:00:56]} 41. Bd4 {[%emt 0:31:20]} c3 {[%emt 0:13:02]} 42. Rxa7 {[%emt 0:00:00]} c2 {[%emt 0:01:47]} 43. f4 {[%emt 0:00:00]} b3 {[%emt 0:01:22]} 44. Bb2 {[%emt 0:00:00]} h5 {[%emt 0:01:34]} 45. Kf2 {[%emt 0:00:00]} Be4 {[%emt 0:04:57]} 46. Ke3 {[%emt 0:00:00]} Bd5 {[%emt 0:02:05]} 47. Kd2 {[%emt 0:00:00]} Be4 {[%emt 0:01:39]} 48. Kc1 {[%emt 0:00:00]} Bc6 {[%emt 0:01:18]} 49. Bd4 {[%emt 0:00:00]} Rb8 {[%emt 0:02:25]} 50. Rc7 {[%emt 0:00:00]} Rb4 {[%emt 0:07:07]} 51. Rxc6 {[%emt 0:00:00]} Rxd4 {[%emt 0:00:10]} 52. Ra8+ {[%emt 0:00:00]} 1-0